lending/lending_fUSD_20250210
["ID","MTS","AMOUNT","RATE_DAILY","PERIOD"]
[352627298,1739206248525,-515.621401,0.00010958,2]
[352627299,1739206248535,-500.51743465,0.00010958,2]
[352627300,1739206248545,-500.0,0.00010958,2]
[352627301,1739206248555,-500.0,0.00010958,2]
[352627302,1739206248566,-500.76728578,0.00010958,2]
[352627303,1739206248576,-1061.52,0.00010958,2]
[352627304,1739206248586,-500.0,0.00010958,2]
[352627305,1739206248595,-500.0,0.00010958,2]
[352627306,1739206248605,-928.09,0.00010958,2]
[352627307,1739206248615,-3018.89,0.00010958,2]
[352627308,1739206248625,-500.0,0.00010958,2]
[352627309,1739206248635,-500.0,0.00010958,2]
[352627310,1739206248644,-500.0,0.00010958,2]
[352627312,1739206248655,-500.0,0.00010958,2]
[352627314,1739206248664,-500.0,0.00010958,2]
[352627316,1739206248674,-500.0,0.00010958,2]
[352627318,1739206248684,-500.0,0.00010958,2]
[352627320,1739206248694,-500.0,0.00010958,2]
[352627322,1739206248704,-500.0,0.00010958,2]
[352627324,1739206248715,-500.0,0.00010958,2]
[352627326,1739206248725,-501.32874174,0.00010958,2]
[352627328,1739206248734,-500.0,0.00010958,2]
[352627330,1739206248744,-500.0,0.00010958,2]
[352627332,1739206248753,-500.0,0.00010958,2]
[352627333,1739206248763,-627.47,0.00010958,2]
[352627336,1739206248773,-500.0,0.00010958,2]
[352627337,1739206248782,-500.0,0.00010958,2]
[352627340,1739206248793,-500.0,0.00010958,2]
[352627342,1739206248803,-618.87,0.00010958,2]
[352627343,1739206248812,-500.0,0.00010958,2]
[352627345,1739206248822,-500.0,0.00010958,2]
[352627347,1739206248831,-500.0,0.00010958,2]
[352627349,1739206248842,-500.0,0.00010958,2]
[352627351,1739206248852,-500.0,0.00010958,2]
[352627353,1739206248862,-500.0,0.00010958,2]
[352627355,1739206248871,-522.03,0.00010958,2]
[352627356,1739206248881,-408.7598761,0.00010958,2]
[352627357,1739206248891,-500.0,0.00010958,2]
[352627358,1739206248901,-500.0,0.00010958,2]
[352627359,1739206248910,-757.79,0.00010958,2]
[352627360,1739206248921,-500.0,0.00010958,2]
[352627361,1739206248937,-1264.8,0.00010958,2]
[352627362,1739206248947,-500.0,0.00010958,2]
[352627363,1739206248956,-500.0,0.00010958,2]
[352627364,1739206248966,-500.0,0.00010958,2]
[352627365,1739206248976,-500.0,0.00010958,2]
[352627366,1739206248987,-988.31,0.00010958,2]
[352627367,1739206248997,-500.0,0.00010958,2]
[352627368,1739206249007,-3071.56,0.00010958,2]
[352627369,1739206249016,-500.0,0.00010958,2]
[352627370,1739206249026,-500.0,0.00010958,2]
[352627371,1739206249035,-617.04,0.00010958,2]
[352627372,1739206249046,-1231.97,0.00010958,2]
[352627373,1739206249055,-500.37663284,0.00010958,2]
[352627374,1739206249065,-500.0,0.00010958,2]
[352627375,1739206249077,-500.0,0.00010958,2]
[352627376,1739206249088,-500.0,0.00010958,2]
[352627377,1739206249098,-500.0,0.00010958,2]
[352627378,1739206249107,-500.0,0.00010958,2]
[352627379,1739206249118,-500.0,0.00010958,2]
[352627380,1739206249127,-892.02,0.00010958,2]
[352627381,1739206249137,-500.0,0.00010958,2]
[352627382,1739206249146,-500.38334477,0.00010958,2]
[352627383,1739206249157,-1316.85,0.00010958,2]
[352627384,1739206249167,-1408.58,0.00010958,2]
[352627385,1739206249177,-500.0,0.00010958,2]
[352627386,1739206249186,-500.0,0.00010958,2]
[352627387,1739206249195,-500.0,0.00010958,2]
[352627388,1739206249205,-500.0,0.00010958,2]
[352627389,1739206249215,-2799.01,0.00010958,2]
[352627390,1739206249224,-500.0,0.00010958,2]
[352627391,1739206249234,-500.0,0.00010958,2]
[352627392,1739206249243,-502.58021701,0.00010958,2]
[352627393,1739206249254,-500.0,0.00010958,2]
[352627394,1739206249263,-500.0,0.00010958,2]
[352627395,1739206249273,-500.0,0.00010958,2]
[352627396,1739206249283,-500.0,0.00010958,2]
[352627397,1739206249292,-500.0,0.00010958,2]
[352627398,1739206249301,-500.0,0.00010958,2]
[352627399,1739206249311,-500.0,0.00010958,2]
[352627400,1739206249320,-2145.5,0.00010958,2]
[352627401,1739206249329,-500.0,0.00010958,2]
[352627402,1739206249339,-500.0,0.00010958,2]
[352627403,1739206249350,-500.0,0.00010958,2]
[352627404,1739206249359,-500.0,0.00010958,2]
[352627405,1739206249369,-502.42680697,0.00010958,2]
[352627406,1739206249378,-500.0,0.00010958,2]
[352627407,1739206249388,-424.57105585,0.00010958,2]
[352627408,1739206249397,-1082.6,0.00010958,2]
[352627409,1739206249406,-500.0,0.00010958,2]
[352627410,1739206249416,-1426.91,0.00010958,2]
[352627411,1739206249426,-500.0,0.00010958,2]
[352627412,1739206249435,-500.0,0.00010958,2]
[352627413,1739206249445,-500.0,0.00010958,2]
[352627414,1739206249552,-500.0,0.00010958,2]
[352627415,1739206249568,-5230.43,0.00010958,2]
[352627416,1739206249579,-500.0,0.00010958,2]
[352627417,1739206249590,-500.0,0.00010958,2]
[352627418,1739206249599,-1865.31,0.00010958,2]
[352627419,1739206249609,-500.0,0.00010958,2]
[352627420,1739206249619,-500.0,0.00010958,2]
[352627421,1739206249628,-500.0,0.00010958,2]
[352627422,1739206249637,-500.0,0.00010958,2]
[352627423,1739206249647,-1220.92,0.00010958,2]
[352627424,1739206249657,-500.0,0.00010958,2]
[352627425,1739206249666,-1959.44,0.00010958,2]
[352627426,1739206249676,-500.0,0.00010958,2]
[352627427,1739206249686,-2224.93,0.00010958,2]
[352627428,1739206249695,-568.83,0.00010958,2]
[352627429,1739206249705,-500.0,0.00010958,2]
[352627430,1739206249714,-500.0,0.00010958,2]
[352627431,1739206249723,-500.0,0.00010958,2]
[352627432,1739206249732,-500.0,0.00010958,2]
[352627433,1739206249742,-500.0,0.00010958,2]
[352627434,1739206249751,-500.0,0.00010958,2]
[352627435,1739206249760,-500.0,0.00010958,2]
[352627436,1739206249769,-500.7518454,0.00010958,2]
[352627437,1739206249779,-515.35,0.00010958,2]
[352627438,1739206249788,-1647.13,0.00010958,2]
[352627439,1739206249798,-1646.24,0.00010958,2]
[352627440,1739206249807,-1533.04,0.00010958,2]
[352627441,1739206249817,-1176.05,0.00010958,2]
[352627442,1739206249826,-500.0,0.00010958,2]
[352627443,1739206249836,-908.41,0.00010958,2]
[352627444,1739206249846,-500.0,0.00010958,2]
[352627445,1739206249855,-500.0,0.00010958,2]
[352627446,1739206249865,-5527.91,0.00010958,2]
[352627447,1739206249875,-1365.31,0.00010958,2]
[352627448,1739206249884,-500.0,0.00010958,2]
[352627449,1739206249894,-501.59121561,0.00010958,2]
[352627450,1739206249903,-500.0,0.00010958,2]
[352627451,1739206249912,-477.57844258,0.00010958,2]
[352627452,1739206249923,-500.0,0.00010958,2]
[352627453,1739206249932,-500.0,0.00010958,2]
[352627454,1739206249941,-500.0,0.00010958,2]
[352627455,1739206249950,-500.0,0.00010958,2]
[352627456,1739206249959,-1228.93,0.00010958,2]
[352627457,1739206249968,-2328.61,0.00010958,2]
[352627458,1739206249978,-1366.73,0.00010958,2]
[352627459,1739206249988,-832.7,0.00010958,2]
[352627460,1739206249997,-500.0,0.00010958,2]
[352627461,1739206250006,-500.0,0.00010958,2]
[352627462,1739206250015,-500.0,0.00010958,2]
[352627463,1739206250025,-723.51,0.00010958,2]
[352627464,1739206250034,-500.0,0.00010958,2]
[352627465,1739206250044,-1255.43,0.00010958,2]
[352627466,1739206250053,-500.0,0.00010958,2]
[352627467,1739206250062,-500.0,0.00010958,2]
[352627468,1739206250073,-500.48054356,0.00010958,2]
[352627469,1739206250086,-500.0,0.00010958,2]
[352627470,1739206250096,-500.0,0.00010958,2]
[352627471,1739206250105,-533.54584358,0.00010958,2]
[352627472,1739206250115,-500.0,0.00010958,2]
[352627473,1739206250124,-153.043964,0.00010958,2]
[352627474,1739206250133,-500.0,0.00010958,2]
[352627475,1739206250143,-802.71,0.00010958,2]
[352627476,1739206250154,-500.0,0.00010958,2]
[352627477,1739206250163,-1255.32,0.00010958,2]
[352627478,1739206250173,-500.0,0.00010958,2]
[352627479,1739206250182,-500.0,0.00010958,2]
[352627480,1739206250191,-500.0,0.00010958,2]
[352627481,1739206250208,-500.0,0.00010958,2]
[352627482,1739206250217,-500.0,0.00010958,2]
[352627483,1739206250227,-1770.47,0.00010958,2]
[352627484,1739206250237,-500.0,0.00010958,2]
[352627485,1739206250246,-500.0,0.00010958,2]
[352627486,1739206250256,-500.0,0.00010958,2]
[352627487,1739206250265,-500.0,0.00010958,2]
[352627488,1739206250275,-500.0,0.00010958,2]
[352627489,1739206250285,-500.0,0.00010958,2]
[352627490,1739206250295,-500.0,0.00010958,2]
[352627491,1739206250304,-1180.8,0.00010958,2]
[352627492,1739206250313,-500.0,0.00010958,2]
[352627493,1739206250323,-1108.6,0.00010958,2]
[352627494,1739206250332,-500.0,0.00010958,2]
[352627495,1739206250344,-2507.08,0.00010958,2]
[352627496,1739206250354,-2372.98,0.00010958,2]
[352627497,1739206250363,-500.0,0.00010958,2]
[352627498,1739206250373,-500.0,0.00010958,2]
[352627499,1739206250382,-500.0,0.00010958,2]
[352627500,1739206250392,-162.120214,0.00010958,2]
[352627501,1739206250401,-1626.55,0.00010958,2]
[352627502,1739206250410,-500.0,0.00010958,2]
[352627503,1739206250420,-682.3,0.00010958,2]
[352627504,1739206250429,-500.0,0.00010958,2]
[352627505,1739206250439,-500.0,0.00010958,2]
[352627506,1739206250449,-500.0,0.00010958,2]
[352627507,1739206250458,-566.25,0.00010958,2]
[352627508,1739206250467,-500.0,0.00010958,2]
[352627509,1739206250476,-1573.2,0.00010958,2]
[352627510,1739206250487,-500.0,0.00010958,2]
[352627511,1739206250495,-500.0,0.00010958,2]
[352627512,1739206250504,-500.0,0.00010958,2]
[352627513,1739206250513,-846.14,0.00010958,2]
[352627514,1739206250522,-157.072744,0.00010958,2]
[352627515,1739206250531,-500.0,0.00010958,2]
[352627516,1739206250542,-2360.73,0.00010958,2]
[352627517,1739206250552,-502.03789069,0.00010958,2]
[352627518,1739206250561,-1328.53,0.00010958,2]
[352627519,1739206250570,-500.0,0.00010958,2]
[352627520,1739206250579,-500.0,0.00010958,2]
[352627521,1739206250592,-500.0,0.00010958,2]
[352627522,1739206250601,-500.0,0.00010958,2]
[352627523,1739206250610,-500.0,0.00010958,2]
[352627524,1739206250619,-1025.41,0.00010958,2]
[352627525,1739206250629,-268.12195921,0.00010958,2]
[352627526,1739206250638,-500.0,0.00010958,2]
[352627527,1739206250648,-500.0,0.00010958,2]
[352627528,1739206250659,-500.0,0.00010958,2]
[352627529,1739206250672,-498.91799453,0.00010958,2]
[352627530,1739206250682,-500.0,0.00010958,2]
[352627531,1739206250691,-500.0,0.00010958,2]
[352627532,1739206250701,-500.0,0.00010958,2]
[352627533,1739206250710,-567.17,0.00010958,2]
[352627534,1739206250720,-500.0,0.00010958,2]
[352627535,1739206250730,-500.0,0.00010958,2]
[352627536,1739206250739,-500.0,0.00010958,2]
[352627537,1739206250749,-912.69,0.00010958,2]
[352627538,1739206250758,-500.0,0.00010958,2]
[352627539,1739206250768,-500.0,0.00010958,2]
[352627540,1739206250778,-500.0,0.00010958,2]
[352627541,1739206250787,-500.0,0.00010958,2]
[352627542,1739206250797,-500.0,0.00010958,2]
[352627543,1739206250806,-500.0,0.00010958,2]
[352627544,1739206250816,-500.0,0.00010958,2]
[352627545,1739206250825,-500.0,0.00010958,2]
[352627546,1739206250836,-1515.47,0.00010958,2]
[352627547,1739206250846,-500.0,0.00010958,2]
[352627548,1739206250855,-1828.17,0.00010958,2]
[352627549,1739206250865,-500.0,0.00010958,2]
[352627550,1739206250875,-500.0,0.00010958,2]
[352627551,1739206250886,-1019.83,0.00010958,2]
[352627552,1739206250896,-500.0,0.00010958,2]
[352627553,1739206250906,-500.0,0.00010958,2]
[352627554,1739206250915,-500.0,0.00010958,2]
[352627555,1739206250925,-1067.27,0.00010958,2]
[352627556,1739206250935,-500.0,0.00010958,2]
[352627557,1739206251036,-500.0,0.00010958,2]
[352627558,1739206251048,-500.0,0.00010958,2]
[352627559,1739206251058,-616.96,0.00010958,2]
[352627560,1739206251068,-500.0,0.00010958,2]
[352627561,1739206251081,-500.0,0.00010958,2]
[352627562,1739206251092,-500.0,0.00010958,2]
[352627563,1739206251102,-500.0,0.00010958,2]
[352627564,1739206251111,-1061.34,0.00010958,2]
[352627565,1739206251122,-1135.58,0.00010958,2]
[352627566,1739206251131,-500.0,0.00010958,2]
[352627567,1739206251140,-1752.46,0.00010958,2]
[352627568,1739206251150,-2288.69,0.00010958,2]
[352627569,1739206251159,-500.0,0.00010958,2]
[352627570,1739206251169,-500.0,0.00010958,2]
[352627571,1739206251179,-695.86,0.00010958,2]
[352627572,1739206251188,-500.0,0.00010958,2]
[352627573,1739206251196,-515.44,0.00010958,2]
[352627574,1739206251206,-500.0,0.00010958,2]
[352627575,1739206251214,-1230.27,0.00010958,2]
[352627576,1739206251223,-571.24,0.00010958,2]
[352627577,1739206251232,-500.0,0.00010958,2]
[352627578,1739206251242,-500.0,0.00010958,2]
[352627579,1739206251251,-952.08,0.00010958,2]
[352627580,1739206251260,-500.0,0.00010958,2]
[352627581,1739206251269,-500.0,0.00010958,2]
[352627582,1739206251278,-500.0,0.00010958,2]
[352627583,1739206251287,-502.41198927,0.00010958,2]
[352627584,1739206251297,-500.0,0.00010958,2]
[352627585,1739206251307,-500.0,0.00010958,2]
[352627586,1739206251316,-500.0,0.00010958,2]
[352627587,1739206251325,-957.99,0.00010958,2]
[352627588,1739206251336,-500.0,0.00010958,2]
[352627589,1739206251345,-323.07449545,0.00010958,2]
[352627590,1739206251355,-502.36164623,0.00010958,2]
[352627591,1739206251365,-500.0,0.00010958,2]
[352627592,1739206251373,-500.0,0.00010958,2]
[352627593,1739206251383,-566.35957645,0.00010958,2]
[352627594,1739206251393,-1025.61,0.00010958,2]
[352627595,1739206251403,-739.53,0.00010958,2]
[352627596,1739206251412,-501.63944648,0.00010958,2]
[352627597,1739206251422,-500.0,0.00010958,2]
[352627598,1739206251431,-796.06,0.00010958,2]
[352627599,1739206251441,-500.0,0.00010958,2]
[352627600,1739206251450,-500.0,0.00010958,2]
[352627601,1739206251459,-500.0,0.00010958,2]
[352627602,1739206251468,-2315.6,0.00010958,2]
[352627603,1739206251477,-500.0,0.00010958,2]
[352627604,1739206251487,-500.0,0.00010958,2]
[352627605,1739206251496,-500.0,0.00010958,2]
[352627606,1739206251505,-500.0,0.00010958,2]
[352627607,1739206251514,-1199.81,0.00010958,2]
[352627608,1739206251523,-500.0,0.00010958,2]
[352627609,1739206251532,-1070.06,0.00010958,2]
[352627610,1739206251542,-500.0,0.00010958,2]
[352627611,1739206251551,-500.0,0.00010958,2]
[352627612,1739206251561,-523.50806884,0.00010958,2]
[352627613,1739206251570,-585.88,0.00010958,2]
[352627614,1739206251579,-696.77,0.00010958,2]
[352627615,1739206251589,-500.0,0.00010958,2]
[352627616,1739206251598,-500.0,0.00010958,2]
[352627617,1739206251607,-500.0,0.00010958,2]
[352627618,1739206251616,-500.0,0.00010958,2]
[352627619,1739206251625,-2122.16,0.00010958,2]
[352627620,1739206251634,-500.0,0.00010958,2]
[352627621,1739206251643,-1034.58,0.00010958,2]
[352627622,1739206251653,-500.0,0.00010958,2]
[352627623,1739206251662,-591.24,0.00010958,2]
[352627624,1739206251682,-500.0,0.00010958,2]
[352627625,1739206251698,-500.0,0.00010958,2]
[352627626,1739206251717,-500.0,0.00010958,2]
[352627627,1739206251732,-500.30013549,0.00010958,2]
[352627628,1739206251750,-500.0,0.00010958,2]
[352627629,1739206251768,-863.13,0.00010958,2]
[352627630,1739206251786,-500.0,0.00010958,2]
[352627631,1739206251803,-953.34,0.00010958,2]
[352627632,1739206251822,-846.89,0.00010958,2]
[352627633,1739206251841,-500.0,0.00010958,2]
[352627634,1739206251859,-500.0,0.00010958,2]
[352627635,1739206251874,-688.32,0.00010958,2]
[352627636,1739206251892,-500.0,0.00010958,2]
[352627637,1739206251907,-814.41,0.00010958,2]
[352627638,1739206251925,-500.0,0.00010958,2]
[352627639,1739206251939,-500.0,0.00010958,2]
[352627640,1739206251955,-500.0,0.00010958,2]
[352627641,1739206251970,-500.0,0.00010958,2]
[352627642,1739206251986,-1212.02,0.00010958,2]
[352627643,1739206252002,-500.0,0.00010958,2]
[352627644,1739206252017,-500.0,0.00010958,2]
[352627645,1739206252032,-529.62,0.00010958,2]
[352627646,1739206252047,-2515.07,0.00010958,2]
[352627647,1739206252063,-495.12,0.00010958,2]
[352627648,1739206252082,-505.34,0.00010958,2]
[352627649,1739206252098,-506.71,0.00010958,2]
[352627650,1739206252114,-508.14,0.00010958,2]
[352627651,1739206252128,-164.54856909,0.00010958,2]
[352627652,1739206252145,-500.0,0.00010959,2]
[352627653,1739206252159,-2000.0,0.00010959,2]
[352627654,1739206252174,-500.0,0.00010959,2]
[352627655,1739206252190,-200.0,0.00010959,2]
[352627656,1739206252205,-150.0,0.00010959,2]
[352627657,1739206252220,-490.73,0.00010959,2]
[352627658,1739206252235,-150.0,0.00010961,2]
[352627659,1739206252251,-162.9215967,0.00010973,2]
[352627660,1739206252267,-500.0,0.00010973,2]
[352627661,1739206252282,-1000.0,0.00010974,2]
[352627662,1739206252297,-150.0,0.00010975,2]
[352627663,1739206252313,-500.0,0.00010997,2]
[352627664,1739206252328,-500.0,0.00010997,2]
[352627665,1739206252345,-500.0,0.00010997,2]
[352627666,1739206252360,-1153.62,0.00010997,2]
[352627667,1739206252375,-1099.43,0.00010997,2]
[352627668,1739206252392,-1191.01,0.00010997,2]
[352627669,1739206252408,-1830.93,0.00010997,2]
[352627670,1739206252424,-500.0,0.00010997,2]
[352627671,1739206252439,-1035.53,0.00010997,2]
[352627672,1739206252454,-725.42,0.00010997,2]
[352627673,1739206252470,-781.87,0.00010997,2]
[352627674,1739206252485,-1794.93,0.00010997,2]
[352627675,1739206252499,-500.0,0.00010997,2]
[352627676,1739206252514,-630.4,0.00010997,2]
[352627677,1739206252529,-1480.5,0.00010997,2]
[352627678,1739206252543,-1641.92,0.00010997,2]
[352627679,1739206252558,-1039.63,0.00010997,2]
[352627680,1739206252573,-1468.33,0.00010997,2]
[352627681,1739206252590,-500.0,0.00010997,2]
[352627682,1739206252605,-1635.73,0.00010997,2]
[352627683,1739206252620,-1895.18,0.00010997,2]
[352627684,1739206252635,-500.0,0.00010997,2]
[352627685,1739206252651,-500.0,0.00010997,2]
[352627686,1739206252666,-295.17120473,0.00010998,2]
[352627687,1739206252681,-500.0,0.00010998,2]
[352627688,1739206252697,-500.0,0.00010998,2]
[352627689,1739206252855,-156.27831586,0.00010998,2]
[352627690,1739206252877,-500.0,0.00010998,2]
[352627691,1739206252887,-500.0,0.00010998,2]
[352627692,1739206252896,-501.67172576,0.00010998,2]
[352627693,1739206252905,-500.0,0.00010998,2]
[352627694,1739206252914,-500.0,0.00010998,2]
[352627695,1739206252924,-500.0,0.00010998,2]
[352627696,1739206252934,-500.0,0.00010998,2]
[352627697,1739206252944,-500.0,0.00010998,2]
[352627698,1739206252953,-661.2,0.00010998,2]
[352627699,1739206252963,-500.0,0.00010998,2]
[352627700,1739206252971,-761.86,0.00010998,2]
[352627701,1739206252981,-528.39,0.00010998,2]
[352627702,1739206252991,-500.0,0.00010998,2]
[352627703,1739206253001,-500.0,0.00010998,2]
[352627704,1739206253010,-500.0,0.00010998,2]
[352627705,1739206253019,-500.0,0.00010998,2]
[352627706,1739206253030,-500.0,0.00010998,2]
[352627707,1739206253041,-500.0,0.00010998,2]
[352627708,1739206253050,-500.0,0.00010998,2]
[352627709,1739206253060,-500.0,0.00010998,2]
[352627710,1739206253070,-500.0,0.00010998,2]
[352627711,1739206253084,-500.0,0.00010998,2]
[352627712,1739206253095,-395.37,0.00010998,2]
[352627713,1739206253106,-500.0,0.00010998,2]
[352627714,1739206253117,-500.0,0.00010998,2]
[352627715,1739206253126,-500.0,0.00010998,2]
[352627716,1739206253135,-500.0,0.00010998,2]
[352627717,1739206253145,-500.0,0.00010998,2]
[352627718,1739206253157,-500.0,0.00010998,2]
[352627719,1739206253167,-500.0,0.00010998,2]
[352627720,1739206253177,-500.0,0.00010998,2]
[352627721,1739206253186,-500.0,0.00010998,2]
[352627722,1739206253195,-500.0,0.00010998,2]
[352627723,1739206253205,-500.0,0.00010998,2]
[352627724,1739206253214,-500.0,0.00010998,2]
[352627725,1739206253224,-500.0,0.00010998,2]
[352627726,1739206253234,-500.0,0.00010998,2]
[352627727,1739206253243,-500.0,0.00010998,2]
[352627728,1739206253253,-500.0,0.00010998,2]
[352627729,1739206253264,-500.0,0.00010998,2]
[352627730,1739206253273,-500.0,0.00010998,2]
[352627731,1739206253282,-500.0,0.00010998,2]
[352627732,1739206253291,-500.0,0.00010998,2]
[352627733,1739206253300,-500.0,0.00010998,2]
[352627734,1739206253311,-500.0,0.00010998,2]
[352627735,1739206253322,-500.0,0.00010998,2]
[352627736,1739206253332,-500.0,0.00010998,2]
[352627737,1739206253343,-500.0,0.00010998,2]
[352627738,1739206253353,-500.0,0.00010998,2]
[352627739,1739206253363,-500.0,0.00010998,2]
[352627740,1739206253373,-500.0,0.00010998,2]
[352627741,1739206253382,-500.0,0.00010998,2]
[352627742,1739206253391,-500.0,0.00010998,2]
[352627743,1739206253401,-500.0,0.00010998,2]
[352627744,1739206253410,-500.0,0.00010998,2]
[352627745,1739206253421,-500.0,0.00010998,2]
[352627746,1739206253431,-500.0,0.00010998,2]
[352627747,1739206253441,-500.0,0.00010998,2]
[352627748,1739206253451,-458.42,0.00010998,2]
[352627749,1739206253461,-500.0,0.00010998,2]
[352627750,1739206253470,-300.0,0.00010999,2]
[352627751,1739206253480,-300.0,0.00010999,2]
[352627752,1739206253492,-300.0,0.00010999,2]
[352627753,1739206253501,-666.0,0.00010999,2]
[352627754,1739206253511,-494.5,0.00010999,2]
[352627755,1739206253520,-151.0,0.00010999,2]
[352627756,1739206253530,-151.0,0.00010999,2]
[352627757,1739206253539,-500.0,0.00010999,2]
[352627758,1739206253549,-500.0,0.00010999,2]
[352627759,1739206253559,-500.0,0.00010999,2]
[352627760,1739206253569,-500.0,0.00010999,2]
[352627761,1739206253580,-500.0,0.00010999,2]
[352627762,1739206253589,-500.0,0.00010999,2]
[352627763,1739206253600,-500.0,0.00010999,2]
[352627764,1739206253610,-500.0,0.00010999,2]
[352627765,1739206253620,-5000.0,0.00010999,2]
[352627766,1739206253629,-5000.0,0.00010999,2]
[352627767,1739206253638,-2000.0,0.00010999,2]
[352627768,1739206253649,-500.0,0.00010999,2]
[352627769,1739206253658,-500.0,0.00010999,2]
[352627770,1739206253668,-500.0,0.00010999,2]
[352627771,1739206253678,-500.0,0.00010999,2]
[352627772,1739206253688,-500.0,0.00010999,2]
[352627773,1739206253698,-500.0,0.00010999,2]
[352627774,1739206253708,-500.0,0.00010999,2]
[352627775,1739206253718,-500.0,0.00010999,2]
[352627776,1739206253728,-500.0,0.00010999,2]
[352627777,1739206253738,-500.0,0.00010999,2]
[352627778,1739206253748,-500.0,0.00010999,2]
[352627779,1739206253758,-607.64,0.00010999,2]
[352627780,1739206253767,-2000.0,0.00010999,2]
[352627781,1739206253777,-2000.0,0.00010999,2]
[352627782,1739206253787,-1895.0,0.00010999,2]
[352627783,1739206253798,-6671.83632534,0.00011,2]
[352627784,1739206253809,-758673.34747423,0.00011,3]
[352627785,1739206254214,-958.34008589,0.00011,3]
[352627786,1739206254227,-2591.834972,0.00011,3]
[352627787,1739206254240,-395.6035328,0.00011,3]
[352627788,1739206254938,-506.1,0.000109,2]
[352627789,1739206254949,-574.68,0.00010958,2]
[352627790,1739206254959,-18709.95902119,0.00011,3]
[352627791,1739206255001,-293.7505046,0.00011,3]
[352627792,1739206255013,-1437746.53196066,0.00011,3]
[352627793,1739206255024,-4766643.78983227,0.00011,2]
[352627794,1739206255035,-1536.65943099,0.00011,2]
[352627795,1739206656465,1000.0,7.61e-05,2]
[352627796,1739206716655,150.0,7.753e-05,2]
[352627798,1739206777135,150.0,6.847e-05,2]
[352627799,1739206777170,1000.0,7.531e-05,2]
[352627800,1739207091290,-822.8,8.219e-05,2]
[352627801,1739207091317,-1000.0,8.23e-05,2]
[352627802,1739207091344,-150.0,8.362e-05,2]
[352627803,1739207091555,-181.14023265,8.362e-05,2]
[352627804,1739207091580,-846.05976735,8.448e-05,2]
[352627805,1739207130351,-153.94023265,8.448e-05,2]
[352627806,1739207130382,-1000.0,8.497e-05,2]
[352627807,1739207130408,-250.0,8.509e-05,2]
[352627808,1739207130435,-165.24,8.532e-05,2]
[352627809,1739207130466,-732.56,8.541e-05,2]
[352627810,1739207130491,-1000.0,8.547e-05,2]
[352627811,1739207130517,-150.0,8.655e-05,2]
[352627812,1739207130542,-3949.9256,8.699e-05,2]
[352627813,1739207130569,-308.678,8.699e-05,2]
[352627814,1739207130593,-158.2784,8.699e-05,2]
[352627815,1739207130619,-166.66,8.813e-05,2]
[352627816,1739207130644,-1259.5409,8.836e-05,2]
[352627817,1739207130668,-180.9585,8.836e-05,2]
[352627818,1739207130693,-224.0494,8.836e-05,2]
[352627819,1739207130717,-3600.0,8.836e-05,2]
[352627820,1739207130742,-1700.16896735,8.836e-05,2]